[Event "Titled Tuesday Blitz November 14 Late 2023"]
[White "Shohat, Yotam"]
[Black "Urazayev, Arystanbek"]
[WhiteFideId "2813955"]
[BlackFideId "13709810"]
[WhiteElo "2475"]
[BlackElo "2852"]
[Result "1/2-1/2"]
[Round "1"]
[TimeControl "180+1"]
[Date "2023.11.14"]
[WhiteClock "0:00:04"]
[BlackClock "0:00:08"]
[Board "37"]

1. e4 {[%clk 0:03:00]}  c6 {[%clk 0:03:00]} 2. c4 {[%clk 0:03:00]}  d5 {[%clk 0:03:00]} 3. cxd5 {[%clk 0:03:00]}  cxd5 {[%clk 0:03:01]} 4. exd5 {[%clk 0:03:01]}  Nf6 {[%clk 0:03:00]} 5. Nc3 {[%clk 0:03:01]}  Nxd5 {[%clk 0:03:00]} 6. Nf3 {[%clk 0:03:02]}  Nc6 {[%clk 0:03:00]} 7. Bb5 {[%clk 0:03:01]}  e6 {[%clk 0:02:58]} 8. O-O {[%clk 0:03:01]}  Be7 {[%clk 0:02:57]} 9. d4 {[%clk 0:03:01]}  O-O {[%clk 0:02:57]} 10. Re1 {[%clk 0:03:02]}  Bf6 {[%clk 0:02:56]} 11. Ne4 {[%clk 0:03:02]}  Nce7 {[%clk 0:02:54]} 12. Nxf6+ {[%clk 0:03:00]}  Nxf6 {[%clk 0:02:54]} 13. Bg5 {[%clk 0:02:55]}  Ned5 {[%clk 0:02:51]} 14. Ne5 {[%clk 0:02:52]}  h6 {[%clk 0:02:51]} 15. Bh4 {[%clk 0:02:52]}  a6 {[%clk 0:02:50]} 16. Bc4 {[%clk 0:02:50]}  Qd6 {[%clk 0:02:37]} 17. Qf3 {[%clk 0:02:41]}  Bd7 {[%clk 0:02:11]} 18. Qg3 {[%clk 0:02:30]}  Bb5 {[%clk 0:01:53]} 19. b3 {[%clk 0:02:24]}  Rad8 {[%clk 0:01:45]} 20. Rad1 {[%clk 0:02:23]}  Rc8 {[%clk 0:01:36]} 21. h3 {[%clk 0:02:17]}  Nh5 {[%clk 0:01:25]} 22. Qf3 {[%clk 0:02:15]}  Nhf4 {[%clk 0:01:25]} 23. Bg3 {[%clk 0:02:14]}  g5 {[%clk 0:01:21]} 24. Bxd5 {[%clk 0:02:12]}  Qxd5 {[%clk 0:01:21]} 25. Bxf4 {[%clk 0:01:49]}  Qxf3 {[%clk 0:01:21]} 26. Nxf3 {[%clk 0:01:50]}  gxf4 {[%clk 0:01:21]} 27. Rd2 {[%clk 0:01:32]}  Bc6 {[%clk 0:01:15]} 28. Ne5 {[%clk 0:01:31]}  Bd5 {[%clk 0:01:15]} 29. Nd7 {[%clk 0:01:17]}  Rfd8 {[%clk 0:01:15]} 30. Nf6+ {[%clk 0:01:17]}  Kf8 {[%clk 0:01:14]} 31. f3 {[%clk 0:01:13]}  Rc3 {[%clk 0:00:52]} 32. Nh5 {[%clk 0:01:11]}  Re3 {[%clk 0:00:53]} 33. Rc1 {[%clk 0:01:10]}  Bc6 {[%clk 0:00:52]} 34. Nxf4 {[%clk 0:01:00]}  e5 {[%clk 0:00:52]} 35. Ne2 {[%clk 0:00:46]}  Bb5 {[%clk 0:00:47]} 36. Kf2 {[%clk 0:00:42]}  Rxe2+ {[%clk 0:00:43]} 37. Rxe2 {[%clk 0:00:42]}  Bxe2 {[%clk 0:00:44]} 38. Kxe2 {[%clk 0:00:43]}  Rxd4 {[%clk 0:00:44]} 39. Rc7 {[%clk 0:00:44]}  Rb4 {[%clk 0:00:44]} 40. Kd3 {[%clk 0:00:38]}  Kg7 {[%clk 0:00:43]} 41. Kc3 {[%clk 0:00:38]}  Rb6 {[%clk 0:00:43]} 42. Kc4 {[%clk 0:00:35]}  h5 {[%clk 0:00:38]} 43. g4 {[%clk 0:00:22]}  h4 {[%clk 0:00:37]} 44. Kd5 {[%clk 0:00:14]}  Kf6 {[%clk 0:00:36]} 45. Rc8 {[%clk 0:00:10]}  Rb5+ {[%clk 0:00:36]} 46. Ke4 {[%clk 0:00:10]}  Rb4+ {[%clk 0:00:36]} 47. Ke3 {[%clk 0:00:10]}  a5 {[%clk 0:00:32]} 48. Rh8 {[%clk 0:00:10]}  a4 {[%clk 0:00:32]} 49. bxa4 {[%clk 0:00:05]}  Rxa4 {[%clk 0:00:33]} 50. Rh6+ {[%clk 0:00:05]}  Kg5 {[%clk 0:00:24]} 51. Rh5+ {[%clk 0:00:05]}  Kf6 {[%clk 0:00:23]} 52. Rxh4 {[%clk 0:00:06]}  Rxa2 {[%clk 0:00:22]} 53. Rh6+ {[%clk 0:00:06]}  Kg5 {[%clk 0:00:17]} 54. Rb6 {[%clk 0:00:07]}  Ra7 {[%clk 0:00:16]} 55. Ke4 {[%clk 0:00:07]}  f6 {[%clk 0:00:16]} 56. h4+ {[%clk 0:00:06]}  Kxh4 {[%clk 0:00:10]} 57. Rxf6 {[%clk 0:00:07]}  Ra5 {[%clk 0:00:10]} 58. Rf5 {[%clk 0:00:05]}  Kg3 {[%clk 0:00:09]} 59. Rxe5 {[%clk 0:00:05]}  Ra4+ {[%clk 0:00:10]} 60. Kf5 {[%clk 0:00:05]}  Kxf3 {[%clk 0:00:10]} 61. g5 {[%clk 0:00:05]}  Rf4+ {[%clk 0:00:10]} 62. Ke6 {[%clk 0:00:05]}  Rg4 {[%clk 0:00:10]} 63. Kf6 {[%clk 0:00:05]}  Kf4 {[%clk 0:00:06]} 64. Rf5+ {[%clk 0:00:04]}  Ke4 {[%clk 0:00:06]} 65. g6 {[%clk 0:00:05]}  Kd4 {[%clk 0:00:04]} 66. g7 {[%clk 0:00:04]}  Rxg7 {[%clk 0:00:03]} 67. Kxg7 {[%clk 0:00:04]}  Kc4 {[%clk 0:00:04]} 68. Kf6 {[%clk 0:00:04]}  b5 {[%clk 0:00:05]} 69. Ke5 {[%clk 0:00:04]}  b4 {[%clk 0:00:06]} 70. Rf8 {[%clk 0:00:04]}  b3 {[%clk 0:00:04]} 71. Rc8+ {[%clk 0:00:04]}  Kd3 {[%clk 0:00:05]} 72. Rb8 {[%clk 0:00:04]}  Kc2 {[%clk 0:00:05]} 73. Kd4 {[%clk 0:00:03]}  b2 {[%clk 0:00:06]} 74. Rc8+ {[%clk 0:00:03]}  Kd2 {[%clk 0:00:06]} 75. Rb8 {[%clk 0:00:03]}  Kc2 {[%clk 0:00:07]} 76. Rxb2+ {[%clk 0:00:04]}  Kxb2 {[%clk 0:00:08]} 1/2-1/2


[Site "https://www.chess.com"]

[Event "Titled Tuesday Blitz November 14 Late 2023"]
[White "Grossboss19"]
[Black "Pakleza, Zbigniew"]
[BlackFideId "1119290"]
[WhiteElo "2464"]
[BlackElo "2821"]
[Result "0-1"]
[Round "1"]
[TimeControl "180+1"]
[Date "2023.11.14"]
[WhiteClock "0:00:03"]
[BlackClock "0:00:02"]
[Board "43"]

1. c4 {[%clk 0:02:59]}  c6 {[%clk 0:03:00]} 2. Nf3 {[%clk 0:02:57]}  d5 {[%clk 0:03:00]} 3. d4 {[%clk 0:02:57]}  Nf6 {[%clk 0:03:00]} 4. e3 {[%clk 0:02:56]}  Bf5 {[%clk 0:03:00]} 5. Bd3 {[%clk 0:02:55]}  Bg6 {[%clk 0:02:59]} 6. O-O {[%clk 0:02:54]}  Nbd7 {[%clk 0:02:59]} 7. b3 {[%clk 0:02:54]}  e6 {[%clk 0:02:59]} 8. Bb2 {[%clk 0:02:54]}  Be7 {[%clk 0:02:59]} 9. Re1 {[%clk 0:02:54]}  O-O {[%clk 0:02:59]} 10. Nc3 {[%clk 0:02:52]}  Ne4 {[%clk 0:02:59]} 11. Bxe4 {[%clk 0:02:45]}  dxe4 {[%clk 0:03:00]} 12. Nd2 {[%clk 0:02:45]}  f5 {[%clk 0:02:55]} 13. f3 {[%clk 0:02:44]}  Nf6 {[%clk 0:02:52]} 14. fxe4 {[%clk 0:02:38]}  fxe4 {[%clk 0:02:52]} 15. Ne2 {[%clk 0:02:33]}  Bd6 {[%clk 0:02:45]} 16. Nf4 {[%clk 0:02:28]}  Bf5 {[%clk 0:02:42]} 17. Nf1 {[%clk 0:02:23]}  Bg4 {[%clk 0:02:19]} 18. Qd2 {[%clk 0:02:21]}  g5 {[%clk 0:02:16]} 19. Ne2 {[%clk 0:02:16]}  Bf5 {[%clk 0:02:02]} 20. Nfg3 {[%clk 0:02:12]}  Bg6 {[%clk 0:01:59]} 21. Rf1 {[%clk 0:02:11]}  h5 {[%clk 0:01:45]} 22. d5 {[%clk 0:02:00]}  cxd5 {[%clk 0:01:43]} 23. cxd5 {[%clk 0:01:55]}  h4 {[%clk 0:01:37]} 24. Nh1 {[%clk 0:01:53]}  Ng4 {[%clk 0:01:06]} 25. g3 {[%clk 0:01:39]}  e5 {[%clk 0:00:45]} 26. h3 {[%clk 0:01:27]}  Nf6 {[%clk 0:00:44]} 27. g4 {[%clk 0:01:27]}  Qd7 {[%clk 0:00:31]} 28. Nf2 {[%clk 0:01:26]}  Rac8 {[%clk 0:00:28]} 29. Rac1 {[%clk 0:01:23]}  Kg7 {[%clk 0:00:27]} 30. Rxc8 {[%clk 0:01:22]}  Rxc8 {[%clk 0:00:27]} 31. Rc1 {[%clk 0:01:22]}  b5 {[%clk 0:00:19]} 32. b4 {[%clk 0:01:13]}  Rxc1+ {[%clk 0:00:15]} 33. Bxc1 {[%clk 0:01:04]}  Bf7 {[%clk 0:00:14]} 34. Bb2 {[%clk 0:00:59]}  Bxd5 {[%clk 0:00:11]} 35. a3 {[%clk 0:00:56]}  Qe6 {[%clk 0:00:08]} 36. Nc3 {[%clk 0:00:53]}  Bc6 {[%clk 0:00:08]} 37. Qe2 {[%clk 0:00:45]}  a6 {[%clk 0:00:09]} 38. a4 {[%clk 0:00:45]}  Qd7 {[%clk 0:00:05]} 39. axb5 {[%clk 0:00:44]}  axb5 {[%clk 0:00:06]} 40. Qd1 {[%clk 0:00:31]}  Kf7 {[%clk 0:00:03]} 41. Qb3+ {[%clk 0:00:26]}  Qe6 {[%clk 0:00:04]} 42. Qa3 {[%clk 0:00:21]}  Qc4 {[%clk 0:00:04]} 43. Qa7+ {[%clk 0:00:20]}  Be7 {[%clk 0:00:02]} 44. Qb8 {[%clk 0:00:18]}  Ke6 {[%clk 0:00:01]} 45. Ncd1 {[%clk 0:00:17]}  Qxb4 {[%clk 0:00:01]} 46. Qxe5+ {[%clk 0:00:16]}  Kf7 {[%clk 0:00:02]} 47. Qxg5 {[%clk 0:00:14]}  Qd6 {[%clk 0:00:01]} 48. Be5 {[%clk 0:00:12]}  Qd2 {[%clk 0:00:01]} 49. Qf4 {[%clk 0:00:10]}  Qe1+ {[%clk 0:00:01]} 50. Kg2 {[%clk 0:00:09]}  Ke6 {[%clk 0:00:02]} 51. g5 {[%clk 0:00:09]}  Nd5 {[%clk 0:00:02]} 52. Qxe4 {[%clk 0:00:05]}  Nxe3+ {[%clk 0:00:01]} 53. Nxe3 {[%clk 0:00:05]}  Bxe4+ {[%clk 0:00:02]} 54. Nxe4 {[%clk 0:00:03]}  Qxe3 {[%clk 0:00:02]} 0-1


[Site "https://www.chess.com"]

[Event "Titled Tuesday Blitz November 14 Late 2023"]
[White "Mikaelyan, Arman"]
[Black "Ahn, Hongjin"]
[WhiteFideId "13304852"]
[BlackFideId "13201492"]
[WhiteElo "2821"]
[BlackElo "2463"]
[Result "1-0"]
[Round "1"]
[TimeControl "180+1"]
[Date "2023.11.14"]
[WhiteClock "0:00:57"]
[BlackClock "0:00:49"]
[Board "44"]

1. d4 {[%clk 0:03:00]}  Nf6 {[%clk 0:02:59]} 2. c4 {[%clk 0:03:01]}  g6 {[%clk 0:02:57]} 3. Nc3 {[%clk 0:03:00]}  d6 {[%clk 0:02:57]} 4. e4 {[%clk 0:03:00]}  Nbd7 {[%clk 0:02:57]} 5. Be2 {[%clk 0:02:59]}  e5 {[%clk 0:02:57]} 6. Nf3 {[%clk 0:02:57]}  Bg7 {[%clk 0:02:57]} 7. O-O {[%clk 0:02:57]}  O-O {[%clk 0:02:57]} 8. Re1 {[%clk 0:02:50]}  Re8 {[%clk 0:02:57]} 9. Bf1 {[%clk 0:02:48]}  a5 {[%clk 0:02:49]} 10. b3 {[%clk 0:02:41]}  c6 {[%clk 0:02:37]} 11. d5 {[%clk 0:02:39]}  c5 {[%clk 0:02:34]} 12. g3 {[%clk 0:02:31]}  Nh5 {[%clk 0:02:33]} 13. Bg2 {[%clk 0:02:30]}  Rf8 {[%clk 0:02:30]} 14. Nh4 {[%clk 0:02:08]}  Nf4 {[%clk 0:02:27]} 15. Bf1 {[%clk 0:02:06]}  f5 {[%clk 0:02:22]} 16. exf5 {[%clk 0:01:51]}  gxf5 {[%clk 0:02:21]} 17. Nb5 {[%clk 0:01:49]}  Ra6 {[%clk 0:02:08]} 18. Bb2 {[%clk 0:01:44]}  Ng6 {[%clk 0:01:57]} 19. Nxg6 {[%clk 0:01:38]}  hxg6 {[%clk 0:01:58]} 20. Qd2 {[%clk 0:01:35]}  Nf6 {[%clk 0:01:57]} 21. Qg5 {[%clk 0:01:34]}  Qe8 {[%clk 0:01:53]} 22. Nc7 {[%clk 0:01:34]}  Qf7 {[%clk 0:01:35]} 23. Nxa6 {[%clk 0:01:34]}  bxa6 {[%clk 0:01:36]} 24. h4 {[%clk 0:01:31]}  Nh7 {[%clk 0:01:32]} 25. Qd2 {[%clk 0:01:30]}  f4 {[%clk 0:01:29]} 26. Bg2 {[%clk 0:01:21]}  g5 {[%clk 0:01:25]} 27. hxg5 {[%clk 0:01:05]}  Nxg5 {[%clk 0:01:26]} 28. gxf4 {[%clk 0:01:06]}  Qxf4 {[%clk 0:01:27]} 29. Qxf4 {[%clk 0:01:06]}  Rxf4 {[%clk 0:01:28]} 30. Re3 {[%clk 0:01:05]}  Bf6 {[%clk 0:01:19]} 31. Rae1 {[%clk 0:01:00]}  Kf7 {[%clk 0:01:15]} 32. Rg3 {[%clk 0:00:59]}  Bg4 {[%clk 0:01:12]} 33. Bc1 {[%clk 0:00:57]}  Rd4 {[%clk 0:00:49]} 34. Be3 {[%clk 0:00:57]} 1-0


[Site "https://www.chess.com"]

[Event "Titled Tuesday Blitz November 14 Late 2023"]
[White "Kustar, Sandor"]
[Black "Dourerassou, Jonathan"]
[WhiteFideId "702900"]
[BlackFideId "628050"]
[WhiteElo "2439"]
[BlackElo "2803"]
[Result "1-0"]
[Round "1"]
[TimeControl "180+1"]
[Date "2023.11.14"]
[WhiteClock "0:00:14"]
[BlackClock "0:00:12"]
[Board "49"]

1. Nf3 {[%clk 0:03:00]}  Nf6 {[%clk 0:02:56]} 2. c4 {[%clk 0:02:58]}  g6 {[%clk 0:02:57]} 3. d4 {[%clk 0:02:58]}  Bg7 {[%clk 0:02:57]} 4. g3 {[%clk 0:02:58]}  O-O {[%clk 0:02:57]} 5. Bg2 {[%clk 0:02:59]}  d5 {[%clk 0:02:57]} 6. cxd5 {[%clk 0:02:57]}  Nxd5 {[%clk 0:02:58]} 7. O-O {[%clk 0:02:58]}  Nb6 {[%clk 0:02:59]} 8. Nc3 {[%clk 0:02:53]}  Nc6 {[%clk 0:02:59]} 9. d5 {[%clk 0:02:53]}  Nb4 {[%clk 0:02:59]} 10. e4 {[%clk 0:02:50]}  e6 {[%clk 0:02:59]} 11. a3 {[%clk 0:02:50]}  Na6 {[%clk 0:02:59]} 12. Bg5 {[%clk 0:02:46]}  Qe8 {[%clk 0:02:56]} 13. Rc1 {[%clk 0:02:40]}  exd5 {[%clk 0:02:52]} 14. exd5 {[%clk 0:02:35]}  Bg4 {[%clk 0:02:46]} 15. h3 {[%clk 0:02:29]}  Bxf3 {[%clk 0:02:43]} 16. Qxf3 {[%clk 0:02:29]}  Nc4 {[%clk 0:02:40]} 17. Rfe1 {[%clk 0:02:22]}  Ne5 {[%clk 0:02:39]} 18. Qe3 {[%clk 0:02:05]}  Qd7 {[%clk 0:02:35]} 19. Ne4 {[%clk 0:01:59]}  f5 {[%clk 0:02:27]} 20. Nc5 {[%clk 0:01:18]}  Nxc5 {[%clk 0:02:26]} 21. Rxc5 {[%clk 0:01:18]}  Rfe8 {[%clk 0:02:24]} 22. Rec1 {[%clk 0:01:17]}  Rac8 {[%clk 0:02:09]} 23. Qb3 {[%clk 0:01:17]}  Nf7 {[%clk 0:02:02]} 24. Bf4 {[%clk 0:01:16]}  Nd6 {[%clk 0:01:58]} 25. Qc2 {[%clk 0:01:07]}  Nb5 {[%clk 0:01:43]} 26. Bf1 {[%clk 0:00:52]}  Nd4 {[%clk 0:01:41]} 27. Qd3 {[%clk 0:00:53]}  c6 {[%clk 0:01:31]} 28. R1c4 {[%clk 0:00:38]}  cxd5 {[%clk 0:00:54]} 29. Rxc8 {[%clk 0:00:36]}  dxc4 {[%clk 0:00:53]} 30. Qxc4+ {[%clk 0:00:35]}  Kh8 {[%clk 0:00:52]} 31. Rc7 {[%clk 0:00:24]}  Nf3+ {[%clk 0:00:34]} 32. Kg2 {[%clk 0:00:24]}  Ne1+ {[%clk 0:00:34]} 33. Kh1 {[%clk 0:00:24]}  Qd1 {[%clk 0:00:34]} 34. Qf7 {[%clk 0:00:18]}  Qf3+ {[%clk 0:00:31]} 35. Kg1 {[%clk 0:00:18]}  Rg8 {[%clk 0:00:30]} 36. Be5 {[%clk 0:00:19]}  Qxg3+ {[%clk 0:00:19]} 37. fxg3 {[%clk 0:00:18]}  Nf3+ {[%clk 0:00:20]} 38. Kf2 {[%clk 0:00:18]}  Nxe5 {[%clk 0:00:21]} 39. Qe6 {[%clk 0:00:17]}  Nc6 {[%clk 0:00:19]} 40. Rxb7 {[%clk 0:00:16]}  Nd8 {[%clk 0:00:19]} 41. Qd7 {[%clk 0:00:15]}  Nxb7 {[%clk 0:00:19]} 42. Qxb7 {[%clk 0:00:15]}  Bd4+ {[%clk 0:00:19]} 43. Kf3 {[%clk 0:00:15]}  Re8 {[%clk 0:00:19]} 44. Bc4 {[%clk 0:00:14]}  Re3+ {[%clk 0:00:18]} 45. Kf4 {[%clk 0:00:15]}  Bb6 {[%clk 0:00:16]} 46. Qf7 {[%clk 0:00:14]}  Re4+ {[%clk 0:00:15]} 47. Kf3 {[%clk 0:00:14]}  Re3+ {[%clk 0:00:14]} 48. Kg2 {[%clk 0:00:14]}  Re8 {[%clk 0:00:12]} 49. Qf6# {[%clk 0:00:14]} 1-0


[Site "https://www.chess.com"]

[Event "Titled Tuesday Blitz November 14 Late 2023"]
[White "Bazeev, German"]
[Black "Nikologorsky, Matfei"]
[WhiteFideId "24119350"]
[BlackFideId "24102474"]
[WhiteElo "2796"]
[BlackElo "2437"]
[Result "1-0"]
[Round "1"]
[TimeControl "180+1"]
[Date "2023.11.14"]
[WhiteClock "0:01:00"]
[BlackClock "0:00:05"]
[Board "50"]

1. d4 {[%clk 0:03:00]}  Nf6 {[%clk 0:02:59]} 2. Bg5 {[%clk 0:02:59]}  c5 {[%clk 0:02:58]} 3. Bxf6 {[%clk 0:02:59]}  gxf6 {[%clk 0:02:58]} 4. d5 {[%clk 0:02:53]}  Qb6 {[%clk 0:02:57]} 5. Qc1 {[%clk 0:02:53]}  Bg7 {[%clk 0:02:55]} 6. c3 {[%clk 0:02:53]}  d6 {[%clk 0:02:54]} 7. g3 {[%clk 0:02:53]}  Nd7 {[%clk 0:02:39]} 8. Bg2 {[%clk 0:02:43]}  Ne5 {[%clk 0:02:37]} 9. Nd2 {[%clk 0:02:42]}  Bd7 {[%clk 0:02:35]} 10. Ngf3 {[%clk 0:02:43]}  h5 {[%clk 0:02:26]} 11. Qc2 {[%clk 0:02:40]}  Qa6 {[%clk 0:02:20]} 12. Nxe5 {[%clk 0:02:26]}  fxe5 {[%clk 0:02:21]} 13. h4 {[%clk 0:02:26]}  Bg4 {[%clk 0:02:16]} 14. Bf3 {[%clk 0:02:14]}  Bd7 {[%clk 0:02:11]} 15. Be4 {[%clk 0:02:03]}  Bh6 {[%clk 0:01:51]} 16. e3 {[%clk 0:01:59]}  Bg4 {[%clk 0:01:49]} 17. Bd3 {[%clk 0:01:59]}  Qb6 {[%clk 0:01:46]} 18. a4 {[%clk 0:01:53]}  a6 {[%clk 0:01:35]} 19. Nc4 {[%clk 0:01:51]}  Qc7 {[%clk 0:01:33]} 20. Bf5 {[%clk 0:01:51]}  Rb8 {[%clk 0:01:21]} 21. a5 {[%clk 0:01:48]}  Bf3 {[%clk 0:00:52]} 22. Rg1 {[%clk 0:01:44]}  Bg7 {[%clk 0:00:51]} 23. e4 {[%clk 0:01:39]}  Bh6 {[%clk 0:00:47]} 24. Qd3 {[%clk 0:01:32]}  Bg4 {[%clk 0:00:46]} 25. Bxg4 {[%clk 0:01:33]}  hxg4 {[%clk 0:00:47]} 26. Nb6 {[%clk 0:01:34]}  e6 {[%clk 0:00:41]} 27. Rd1 {[%clk 0:01:31]}  Rd8 {[%clk 0:00:40]} 28. Qc4 {[%clk 0:01:30]}  Ke7 {[%clk 0:00:35]} 29. Ke2 {[%clk 0:01:29]}  Bg7 {[%clk 0:00:26]} 30. Rd3 {[%clk 0:01:28]}  Bf8 {[%clk 0:00:23]} 31. Rgd1 {[%clk 0:01:26]}  Kf6 {[%clk 0:00:24]} 32. f3 {[%clk 0:01:21]}  gxf3+ {[%clk 0:00:23]} 33. Rxf3+ {[%clk 0:01:22]}  Ke7 {[%clk 0:00:23]} 34. Rdf1 {[%clk 0:01:16]}  Rh7 {[%clk 0:00:23]} 35. Rxf7+ {[%clk 0:01:07]}  Rxf7 {[%clk 0:00:22]} 36. dxe6 {[%clk 0:01:08]}  Qc6 {[%clk 0:00:09]} 37. Rxf7+ {[%clk 0:01:05]}  Ke8 {[%clk 0:00:10]} 38. Nd5 {[%clk 0:01:00]}  Be7 {[%clk 0:00:05]} 1-0


[Site "https://www.chess.com"]

[Event "Titled Tuesday Blitz November 14 Late 2023"]
[White "Troff, Kayden"]
[Black "Polaczek, Richard"]
[WhiteFideId "2047896"]
[BlackFideId "200026"]
[WhiteElo "2793"]
[BlackElo "2435"]
[Result "1-0"]
[Round "1"]
[TimeControl "180+1"]
[Date "2023.11.14"]
[WhiteClock "0:01:14"]
[BlackClock "0:00:00"]
[Board "52"]

1. d4 {[%clk 0:03:00]}  Nf6 {[%clk 0:02:58]} 2. Nf3 {[%clk 0:02:59]}  d5 {[%clk 0:02:57]} 3. Bf4 {[%clk 0:03:00]}  c5 {[%clk 0:02:54]} 4. e3 {[%clk 0:03:00]}  Nc6 {[%clk 0:02:53]} 5. Nc3 {[%clk 0:03:00]}  a6 {[%clk 0:02:36]} 6. dxc5 {[%clk 0:02:58]}  e6 {[%clk 0:02:33]} 7. Na4 {[%clk 0:02:57]}  Nd7 {[%clk 0:02:27]} 8. Bd6 {[%clk 0:02:49]}  Bxd6 {[%clk 0:02:04]} 9. cxd6 {[%clk 0:02:50]}  b5 {[%clk 0:02:03]} 10. Nc3 {[%clk 0:02:49]}  Nc5 {[%clk 0:01:57]} 11. Be2 {[%clk 0:02:44]}  Qxd6 {[%clk 0:01:56]} 12. O-O {[%clk 0:02:44]}  O-O {[%clk 0:01:54]} 13. Nd4 {[%clk 0:02:28]}  b4 {[%clk 0:01:46]} 14. Nb1 {[%clk 0:02:22]}  Nxd4 {[%clk 0:01:20]} 15. Qxd4 {[%clk 0:02:23]}  a5 {[%clk 0:01:16]} 16. a3 {[%clk 0:02:20]}  e5 {[%clk 0:01:05]} 17. Qd1 {[%clk 0:02:16]}  Rb8 {[%clk 0:01:00]} 18. axb4 {[%clk 0:02:13]}  axb4 {[%clk 0:01:00]} 19. Nd2 {[%clk 0:02:12]}  Bb7 {[%clk 0:00:52]} 20. Bf3 {[%clk 0:02:03]}  Rfd8 {[%clk 0:00:42]} 21. Ra5 {[%clk 0:01:57]}  Qb6 {[%clk 0:00:42]} 22. Ra2 {[%clk 0:01:46]}  e4 {[%clk 0:00:33]} 23. Be2 {[%clk 0:01:43]}  d4 {[%clk 0:00:23]} 24. Nc4 {[%clk 0:01:38]}  Qf6 {[%clk 0:00:23]} 25. exd4 {[%clk 0:01:36]}  Rxd4 {[%clk 0:00:22]} 26. Qc1 {[%clk 0:01:36]}  Ba6 {[%clk 0:00:07]} 27. b3 {[%clk 0:01:35]}  Bxc4 {[%clk 0:00:05]} 28. Bxc4 {[%clk 0:01:35]}  Rbd8 {[%clk 0:00:05]} 29. Qe3 {[%clk 0:01:31]}  g6 {[%clk 0:00:05]} 30. Ra7 {[%clk 0:01:17]}  Rd1 {[%clk 0:00:04]} 31. Qxc5 {[%clk 0:01:13]}  Rxf1+ {[%clk 0:00:00]} 32. Bxf1 {[%clk 0:01:14]} 1-0


[Site "https://www.chess.com"]

[Event "Titled Tuesday Blitz November 14 Late 2023"]
[White "Brodsky, David"]
[Black "Villarreal, Agustin"]
[WhiteFideId "2073250"]
[BlackFideId "125687"]
[WhiteElo "2792"]
[BlackElo "2433"]
[Result "1-0"]
[Round "1"]
[TimeControl "180+1"]
[Date "2023.11.14"]
[WhiteClock "0:00:11"]
[BlackClock "0:00:16"]
[Board "54"]

1. e4 {[%clk 0:03:00]}  e5 {[%clk 0:01:47]} 2. Nf3 {[%clk 0:03:00]}  Nc6 {[%clk 0:01:47]} 3. d4 {[%clk 0:03:00]}  exd4 {[%clk 0:01:48]} 4. Nxd4 {[%clk 0:03:01]}  Nf6 {[%clk 0:01:48]} 5. Nxc6 {[%clk 0:03:01]}  bxc6 {[%clk 0:01:49]} 6. e5 {[%clk 0:03:01]}  Qe7 {[%clk 0:01:48]} 7. Qe2 {[%clk 0:03:02]}  Nd5 {[%clk 0:01:49]} 8. h4 {[%clk 0:03:02]}  a5 {[%clk 0:01:45]} 9. c4 {[%clk 0:02:58]}  Ba6 {[%clk 0:01:45]} 10. g3 {[%clk 0:02:44]}  Nb6 {[%clk 0:01:44]} 11. Nd2 {[%clk 0:02:38]}  Qe6 {[%clk 0:01:43]} 12. b3 {[%clk 0:02:37]}  Bb4 {[%clk 0:01:43]} 13. Bh3 {[%clk 0:02:37]}  Qe7 {[%clk 0:01:41]} 14. O-O {[%clk 0:02:37]}  O-O {[%clk 0:01:40]} 15. Bb2 {[%clk 0:02:37]}  Rae8 {[%clk 0:01:39]} 16. Ne4 {[%clk 0:02:22]}  d5 {[%clk 0:01:35]} 17. Nf6+ {[%clk 0:02:14]}  Qxf6 {[%clk 0:01:30]} 18. a3 {[%clk 0:01:54]}  Bd6 {[%clk 0:01:29]} 19. Rfe1 {[%clk 0:01:35]}  Qg6 {[%clk 0:01:19]} 20. Qf3 {[%clk 0:01:23]}  Bc5 {[%clk 0:01:15]} 21. Bf5 {[%clk 0:01:21]}  Qh6 {[%clk 0:01:07]} 22. Bc1 {[%clk 0:01:20]}  Qe6 {[%clk 0:01:06]} 23. Bxe6 {[%clk 0:01:18]}  fxe6 {[%clk 0:01:06]} 24. Bf4 {[%clk 0:01:17]}  Bd4 {[%clk 0:01:02]} 25. Rad1 {[%clk 0:01:12]}  c5 {[%clk 0:01:02]} 26. Qg4 {[%clk 0:00:56]}  dxc4 {[%clk 0:00:58]} 27. Be3 {[%clk 0:00:56]}  Bxe3 {[%clk 0:00:55]} 28. Rxe3 {[%clk 0:00:56]}  Nd5 {[%clk 0:00:54]} 29. Rf3 {[%clk 0:00:52]}  c3 {[%clk 0:00:48]} 30. Rxf8+ {[%clk 0:00:49]}  Kxf8 {[%clk 0:00:48]} 31. Rxd5 {[%clk 0:00:39]}  exd5 {[%clk 0:00:48]} 32. Qf3+ {[%clk 0:00:40]}  Ke7 {[%clk 0:00:23]} 33. Qxd5 {[%clk 0:00:41]}  c4 {[%clk 0:00:23]} 34. bxc4 {[%clk 0:00:35]}  Rd8 {[%clk 0:00:18]} 35. Qc5+ {[%clk 0:00:32]}  Ke8 {[%clk 0:00:10]} 36. Qc6+ {[%clk 0:00:32]}  Ke7 {[%clk 0:00:10]} 37. Qxc7+ {[%clk 0:00:30]}  Rd7 {[%clk 0:00:10]} 38. Qc5+ {[%clk 0:00:30]}  Ke8 {[%clk 0:00:10]} 39. Qc6 {[%clk 0:00:08]}  c2 {[%clk 0:00:09]} 40. e6 {[%clk 0:00:08]}  c1=Q+ {[%clk 0:00:07]} 41. Kh2 {[%clk 0:00:09]}  Qd2 {[%clk 0:00:07]} 42. exd7+ {[%clk 0:00:08]}  Qxd7 {[%clk 0:00:08]} 43. Qxa6 {[%clk 0:00:07]}  Qa4 {[%clk 0:00:08]} 44. Qb5+ {[%clk 0:00:07]}  Qxb5 {[%clk 0:00:07]} 45. cxb5 {[%clk 0:00:08]}  a4 {[%clk 0:00:08]} 46. g4 {[%clk 0:00:07]}  Kd7 {[%clk 0:00:09]} 47. f4 {[%clk 0:00:07]}  Kc7 {[%clk 0:00:09]} 48. f5 {[%clk 0:00:07]}  Kb6 {[%clk 0:00:10]} 49. g5 {[%clk 0:00:07]}  Kxb5 {[%clk 0:00:11]} 50. f6 {[%clk 0:00:08]}  gxf6 {[%clk 0:00:12]} 51. gxf6 {[%clk 0:00:09]}  Kc4 {[%clk 0:00:13]} 52. f7 {[%clk 0:00:09]}  Kb3 {[%clk 0:00:14]} 53. f8=Q {[%clk 0:00:10]}  h5 {[%clk 0:00:15]} 54. Qb4+ {[%clk 0:00:10]}  Ka2 {[%clk 0:00:15]} 55. Qxa4 {[%clk 0:00:10]}  Kb2 {[%clk 0:00:16]} 56. Qb4+ {[%clk 0:00:11]}  Ka2 {[%clk 0:00:16]} 57. a4 {[%clk 0:00:11]} 1-0


[Site "https://www.chess.com"]